Cogmind - Beta 10.2 @@@ ROGUE MODE // 2021.11.27 @ 20:51:48 Player: Ol Swarmie Result: Destroyed by S-10 Pest with Light Assault Rifle Performance ------------- Evolutions (0) 0 Regions Visited (2) 400 Robots Destroyed (14) 70 Value Destroyed (520) 520 Prototype IDs (0) 0 Alien Tech Used (0) 0 Bonus (0) 0 TOTAL SCORE: 990 Bonus ------- None Cogmind --------- Core Integrity 0/250 Matter 277/300 Energy 150/150 System Corruption 0% Temperature Cool (313) Movement Walking (130) Location -10/Mines Parts ------- > --- POWER (1) -------- Light Angular Momentum Engine > --- PROPULSION (2) --- Carbon-fiber Leg Makeshift Leg > --- UTILITY (2) ------ Small Storage Unit Signal Interpreter > --- WEAPON (2) ------- Mining Laser > --- INVENTORY (6) ---- Ion Engine Light Nuclear Core Aluminum Leg Improved Heat Sink Peak State ------------ > --- POWER ------------ Light Angular Momentum Engine > --- PROPULSION ------- Aluminum Leg Carbon-fiber Leg > --- UTILITY ---------- Small Storage Unit Signal Interpreter > --- WEAPON ----------- Shock Rifle Beamcaster > --- INVENTORY -------- Ion Engine Light Nuclear Core Aluminum Leg Improved Heat Sink Light Assault Rifle Mining Laser [Rating: 20] Favorites ----------- Power Light Angular Momentum Engine Engine Light Angular Momentum Engine Power Core Light Nuclear Core Propulsion Aluminum Leg Leg Aluminum Leg Wheel Wheel Flight Unit Flight Unit Utility Small Storage Unit Storage Small Storage Unit Processor Signal Interpreter Weapon Assault Rifle Energy Gun Particle Gun Ballistic Gun Assault Rifle Special Weapon Mining Laser Build | -11 -10 -10 ------- Run | Scr Mat Min Slots Evolved . | . . . Power . | . . . Propulsion . | . . . Utility . | . . . Weapon . | . . . Parts Attached 22 | 6 4 12 Power 3 | 1 . 2 Engine 2 | 1 . 1 Core 1 | . . 1 Reactor . | . . . Propulsion 8 | 2 2 4 Treads . | . . . Leg 4 | . . 4 Wheel 3 | 2 1 . Hover . | . . . Flight 1 | . 1 . Utility 2 | 1 1 . Device . | . . . Storage 1 | 1 . . Processor 1 | . 1 . Hackware . | . . . Protection . | . . . Artifact . | . . . Weapon 9 | 2 1 6 Energy Gun 4 | 1 . 3 Energy Cannon . | . . . Ballistic Gun 4 | 1 1 2 Ballistic Cannon . | . . . Launcher . | . . . Special Weapon 1 | . . 1 Impact Weapon . | . . . Slashing Weapon . | . . . Piercing Weapon . | . . . Special Melee Weapon . | . . . Unidentified Prototypes . | . . . Parts Lost 7 | . 1 6 Power . | . . . Propulsion 1 | . . 1 Utility . | . . . Weapon 6 | . 1 5 Highest Loss Streak 3 | . 1 3 Average Slot Usage (%) 98 | . 96 99 Engine 9 | . 14 8 Core 4 | . . 5 Leg 20 | . . 25 Wheel 7 | . 27 1 Storage 14 | . 14 14 Processor 13 | . 10 14 Energy Gun 12 | . 14 11 Ballistic Gun 15 | . 14 15 Naked Turns . | . . . Heaviest Build 21 | 13 13 21 Greatest Support 25 | 20 20 25 Greatest Overweight (x) 3 | 3 1 1 Average Overweight (x) . | . . . Largest Inventory Capacity 6 | 6 6 6 Average Capacity 5 | 5 6 6 Most Carried 6 | 2 6 6 Average Carried 5 | . 3 5 Final Capacity 6 | 6 6 6 Final Carried 6 | 2 6 4 Class Distribution -------------------- 100% | Mutant Dominant Class ---------------- Mutant | -10/Materials Mutant | -10/Mines Resources | -11 -10 -10 ----------- Run | Scr Mat Min Matter Collected 466 | 247 66 153 Remotely . | . . . Salvage Created 531 | . 118 413 Parts 35 | . 11 24 Haulers Intercepted . | . . . Recyclers Shooed . | . . . Parts Field Recycled . | . . . Retrieved Matter . | . . . Parts Self-Destructed . | . . . Prevented . | . . . Kills | -11 -10 -10 ------- Run | Scr Mat Min Combat Hostiles Destroyed 14 | . 3 11 Guns 13 | . 3 10 AOE 1 | . . 1 Classes Destroyed 2 | . 1 1 Swarmer 2 | . . 2 Grunt 12 | . 3 9 Best Kill Streak 4 | . 3 4 Combat Bots Only 4 | . 3 4 Max Kills in Single Turn 1 | . 1 1 Gunslinging . | . . . Exploded 1 | . . 1 Melee . | . . . Uniques/NPCs Destroyed . | . . . Combat | -11 -10 -10 -------- Run | Scr Mat Min Damage Taken 1000 | . 228 772 Core 257 | . 55 202 Absorbed by Shields . | . . . Core Remaining (%) 100 | 100 . . Volleys Fired 42 | . 6 36 Largest 2 | . 2 2 Hottest 140 | . 60 140 Shots Fired 76 | . 12 64 Gun 75 | . 12 63 Cannon . | . . . Launcher . | . . . Special 1 | . . 1 Kinetic 40 | . 6 34 Thermal 19 | . . 19 Explosive . | . . . Electromagnetic 17 | . 6 11 Robot Hit Streak 6 | . 5 6 Robot Miss Streak 2 | . 2 2 Penetration Max . | . . . Secondary Targets 4 | . . 4 Max Gunslinging Chain 1 | . . 1 Shots Hit Robots 50 | . 9 41 Core Hits 28 | . 6 22 Critical Hits . | . . . Critical Kills . | . . . Critical Parts Destroyed . | . . . Melee Attacks . | . . . Impact . | . . . Slashing . | . . . Piercing . | . . . Sneak Attacks . | . . . Combat Hostiles . | . . . Follow-up Attacks . | . . . Damage Inflicted 813 | . 123 690 Guns 690 | . 123 567 Cannons . | . . . Explosions 99 | . . 99 Melee . | . . . Ramming . | . . . Kinetic 300 | . 73 227 Thermal 329 | . . 329 Explosive . | . . . Electromagnetic 184 | . 50 134 Impact . | . . . Slashing . | . . . Piercing . | . . . Highest Corruption . | . . . Average Corruption . | . . . Corruption Purged . | . . . Overload Shots . | . . . Overflow Damage . | . . . Projectiles . | . . . Explosions . | . . . Melee . | . . . Knockbacks . | . . . Impact . | . . . Kinetic . | . . . Secondary . | . . . Self-Inflicted Damage 40 | . . 40 Shots 1 | . . 1 Rammed . | . . . Targets Rammed . | . . . Kicked . | . . . Crushed . | . . . Highest Temperature 313 | . 72 313 Average Temperature 102 | . 50 111 Received Heat Transfer 456 | . 126 330 Effects 3 | . . 3 Interference 3 | . . 3 Siege Activations . | . . . Robots Corrupted . | . . . Combat Hostiles . | . . . Parts Fried . | . . . Impact Corruptions . | . . . Robots Melted . | . . . Combat Hostiles . | . . . Parts Melted . | . . . Heat Transferred 644 | . . 644 Parts Sabotaged . | . . . Parts Stolen . | . . . Parts Stripped . | . . . Power Chain Reactions 1 | . . 1 Missiles Intercepted . | . . . Alert | -11 -10 -10 ------- Run | Scr Mat Min Peak Influence 137 | . 75 137 Initial 28 | . . 28 Average 60 | . 33 71 Maximum Alert Level . | . . . Low Security (%) 100 | 100 100 100 Level 1 . | . . . Level 2 . | . . . Level 3 . | . . . Level 4 . | . . . Level 5 . | . . . High Security . | . . . Max Security . | . . . Squads Dispatched 1 | . 1 . Investigation 1 | . 1 . Extermination . | . . . Reinforcement . | . . . Assault . | . . . Garrison . | . . . Intercept . | . . . Construction Impeded . | . . . Haulers Reinforced . | . . . Stealth | -11 -10 -10 --------- Run | Scr Mat Min Distress Signals . | . . . Communications Jammed . | . . . Distress Signals . | . . . Times Spotted 17 | . 4 13 Peak Tracking Total 5 | . 4 5 Tactical Retreats . | . . . Traps | -11 -10 -10 ------- Run | Scr Mat Min Traps Triggered 1 | . 1 . Indirectly . | . . . Trap Hack Attempts . | . . . Triggered . | . . . Disarmed . | . . . Reprogrammed . | . . . Reused . | . . . Traps Extracted . | . . . Installed . | . . . Triggered . | . . . Machines | -11 -10 -10 ---------- Run | Scr Mat Min Machines Disabled 4 | . 1 3 Max in Single Turn 1 | . 1 1 Machines Sabotaged . | . . . Garrisons Compromised . | . . . Overloaded Fab Kills . | . . . Fab Network Shutdowns . | . . . Hacking | -11 -10 -10 --------- Run | Scr Mat Min Machines Accessed 3 | . 2 1 Terminals 2 | . 2 . Fabricators . | . . . Repair Stations . | . . . Recycling Units . | . . . Scanalyzers . | . . . Garrison Access . | . . . Total Hacks 9 | . 8 1 Successful 4 | . 3 1 Failed 5 | . 5 . Catastrophic 1 | . 1 . Database Lockouts . | . . . Manual . | . . . Terminals 8 | . 8 . Fabricators . | . . . Repair Stations . | . . . Recycling Units . | . . . Scanalyzers . | . . . Garrison Access . | . . . Terminal Hacks 4 | . 3 1 Record 2 | . 2 . Open Door 1 | . . 1 Unreport Threat 1 | . 1 . Fabricator Hacks . | . . . Repair Station Hacks . | . . . Recycling Unit Hacks . | . . . Scanalyzer . | . . . Garrison Access Hacks . | . . . Unauthorized Hacks . | . . . Terminals . | . . . Fabricators . | . . . Repair Stations . | . . . Recycling Units . | . . . Scanalyzers . | . . . Garrison Access . | . . . Data Cores Recovered . | . . . Used . | . . . Hacking Detections 2 | . 2 . Full Trace Events . | . . . Feedback Events . | . . . Feedback Blocked . | . . . Robot Schematics Acquired . | . . . Robots Built . | . . . Matter . | . . . Time . | . . . Total Robot Build Rating . | . . . Part Schematics Acquired . | . . . Parts Built . | . . . Matter . | . . . Time . | . . . Total Part Build Rating . | . . . Parts Repaired . | . . . Time . | . . . Parts Recycled . | . . . Recycled Matter . | . . . Retrieved Matter . | . . . Retrieved Components . | . . . Parts Scanalyzed . | . . . Part Schematics Acquired . | . . . Parts Damaged . | . . . Bothacking | -11 -10 -10 ------------ Run | Scr Mat Min Used RIF Installer . | . . . Robots Hacked . | . . . Non-combat . | . . . Combat . | . . . Robot Hacks Applied . | . . . Relay Couplers Released . | . . . Robots Rewired . | . . . Allies Hacked . | . . . Hacks Repelled . | . . . Allies | -11 -10 -10 -------- Run | Scr Mat Min Total Allies 2 | . . 2 Largest Group 2 | . . 2 Highest-Rated Group 50 | . . 50 Highest-Rated Ally 31 | . . 31 Total Orders . | . . . Ally Attacks 11 | . . 11 Total Damage 83 | . . 83 Kills . | . . . Allies Corrupted . | . . . Allies Melted . | . . . Intel | -11 -10 -10 ------- Run | Scr Mat Min Robot Analysis Total . | . . . Derelict Logs Recovered 3 | . . 3 Drone Launches . | . . . Drone Recoveries . | . . . Exploration | -11 -10 -10 ------------- Run | Scr Mat Min Turns Passed 1085 | 60 211 814 Spaces Moved 854 | 50 226 578 Core 19 | 19 . . Treads . | . . . Legs 546 | . . 546 Wheels 289 | 31 226 32 Hover . | . . . Flight . | . . . Fastest Speed 50 | 50 80 80 Average Speed 107 | 97 80 118 Slowest Speed 200 | 200 90 150 Overloaded Moves . | . . . Propulsion Burnouts . | . . . Robots Hopped 2 | . . 2 Cave-ins Triggered . | . . . Exploration Rate (%) 41 | 3 32 88 Regions Visited 2 Branch Regions 1 Pre-discovered Areas . | . . . Known Exits Taken 1 | . 1 . Unknown Exits Taken 1 | 1 . . Scrap Searched 1 | . . 1 Spaces Dug . | . . . Terrain Destroyed 3 | . . 3 Melee . | . . . Projectile . | . . . AOE 3 | . . 3 Terrain Rammed . | . . . Walls Destroyed . | . . . Machines Disabled . | . . . Actions | -11 -10 -10 --------- Run | Scr Mat Min Total 944 | 57 242 645 Wait 5 | . 1 4 Move 848 | 49 225 574 Hop 2 | . . 2 Pick Up 14 | 2 5 7 Fast Attach 12 | 6 1 5 Attach 6 | . 2 4 Detach 1 | . 1 . Swap 4 | . 1 3 Drop 10 | . . 10 Fire 42 | . 6 36 Melee . | . . . Ram . | . . . Kick . | . . . Crush . | . . . Escape Stasis . | . . . Rewire . | . . . Trap . | . . . Miscellaneous . | . . . Route ------- -11/Scrapyard -10/Materials -10/Mines (discovered 1 exit: [*Mat]) History --------- Turn | Location | Event 2 | -11/Scrapyard | Met Revision 17 22 | -11/Scrapyard | Discovered new exit (range 15) 61 | -11/Scrapyard | Entered Materials 246 | -10/Materials | Discovered new exit (range 16) 265 | -10/Materials | Identified exit to Mines 272 | -10/Materials | Entered Mines 310 | -10/Mines | Build established: Mutant 397 | -10/Mines | Learned Materials terminal intel 472 | -10/Mines | Learned Materials machine intel 549 | -10/Mines | Learned Materials emergency access door positions 628 | -10/Mines | Met a Derelict who couldn't figure out how to use a Trap Extractor 974 | -10/Mines | Core integrity fell below 50% 1047 | -10/Mines | Discovered new exit (range 7) 1079 | -10/Mines | Core integrity fell below 20% 1086 | -10/Mines | Destroyed by S-10 Pest with Light Assault Rifle Last Messages --------------- 01030_ K-01 Serf collects debris. 01047_ EXIT=FOUND 01051_ T-07 Excavator is excavating. 01053_ S-10 Pest destroyed. 01053_ Switching to secondary target: S-10 Pest. 01059_ S-10 Pest destroyed. 01059_ Switching to secondary target: G-47 Trooper. 01061_ Beamcaster destroyed. 01064_ T-07 Excavator is excavating. 01065_ Dropped Aluminum Leg. 01068_ T-07 Excavator is excavating. 01070_ Laser Drill disabled. 01072_ T-07 Excavator is excavating. 01074_ Overheating: System interference. 01074_ Signal Interpreter temporarily disabled. 01074_ Lgt. Assault Rifle temporarily disabled. 01078_ Chain reaction triggered in Ion Engine. 01078_ G-34 Mercenary destroyed. 01081_ Shock Rifle destroyed. 01085_ Lgt. Assault Rifle destroyed. Map ----- +----------------------------------------------------+ | ???????????????# ## ######" | | ??????????????# #### ##" | | ??????????????## ##??## ! ##" | | ???????????????###?????## ##" | | ????????????????????????## ### | | ????????????? ??????????# ! #?# | | ????????????? ??????????# ### | | ????????????? ??????????# ####### | | ????????????? #?????????# #?????# | | ??????????### #?????????# ##????## | | ?????????? ?????????# #?????# | | ??????????? ??????????## #?????# | | ??????????? ???????????# #?????# | | ??????????? < ???????????# #?????? | | ??????????? ???????????# #?????? | | ??????????? ???????????# #?????? | | ??????????? ???????????#= #?????? | | ???????????# #???????????#% #?????? | | ???????????# #???????????#* #?????# | | ???????????# ######??????# #????## | | ???????????# #?????## ##?### | | ???????????# #### ####### [### | | ???????????#=#??# = | | ????????####%#??########## ! | | ??????###;;;[##??????????### | | ??????# @g* #????????????## | | ??????# =%=[=#?????????????# | | ??????# s% #?????????????# | | ??????# #????????????## | | ??????# """#???????????## # | | ??????# #???????????# ## | | ??????### #####???????????# ##? | | ????????# ???????????????## ##?? | | ????????# ??????????????## ##??? | | ????????# ??????????????# ##???? | | ???????? ??????????????# #????? | | ???????? ??????????????## ##???? | | ????????##???????????????## ##??? | | ?????????????????????????## #??? | | ????????????????????????## #??? | | ??????????????????????### ##??? | | ???????????????????#### ###???? | | ??????????????????## ##?????? | | ??????????????????# ##?????? | | ?????????????????## ##????? | | ?????????????????# % ##???? | | ?????????????????# [ [ ##### | | ?????????????????## "" !% | | ??????????????????## "" = | | ???????????????????## """% #### | +----------------------------------------------------+ Best States ------------- Heat Dissipation 25 Energy Generation 18 Energy Capacity 250 Matter Stores 300 Matter Capacity 300 Sight Range 16 Terrain Scan Density 10 Evasion (%) 44 Item Schematics ----------------- None Robot Schematics ------------------ None Fabricated ------------ Nothing Alien Tech Used ----------------- None Achievements -------------- None Challenges ------------ None Game ------ Seed SystemLongswordComputer Manual? 0 Play Time 00:36:32 Cumulative 3.0 hours Start 2021.11.27 @ 20:09:09 End 2021.11.27 @ 20:51:48 Sessions 1 Manual Loads 0 Difficulty Rogue Special Mode None Game No. 4 Rogue 4 Adventurer 0 Explorer 0 Win Type - Total 0 Types 0/0/0/0/0/0/0/0/0 Lore% 2 Gallery% 5 Achievement% 3 Wizard Run 0 Options --------- ASCII 1 Keyboard 0 Movement Vi Keybinds 0 Fullscreen 2 Font 24/Smallcaps Map View 76x50 Tactical HUD 1 Map Filters NONE Filters NONE Steam 1 RUN: 4312ac10-33a7-4882-8e99-222f9e3cc7f2